bitfinex/quotes_SOLUSD_20250228
["timestamp","ask_amount","ask_price","bid_price","bid_amount"]
[1740761051274,39.38181043,146.7,146.69,0.063]
[1740761051478,47.84181043,146.7,146.67,131.2575902]
[1740761051682,39.38181043,146.68,146.67,131.2575902]
[1740761051982,39.38181043,146.68,146.67,129.2575902]
[1740761052581,39.38181043,146.68,146.67,128.2575902]
[1740761052779,39.38181043,146.68,146.67,125.2575902]
[1740761053669,104.92291846,146.68,146.67,125.2575902]
[1740761053871,104.92291846,146.68,146.67,117.9954902]
[1740761053872,156.18570042,146.68,146.67,117.9954902]
[1740761054071,156.18570042,146.68,146.67,104.2112902]
[1740761054481,197.41570042,146.68,146.67,80.4412902]
[1740761054691,192.73419271,146.68,146.67,80.4412902]
[1740761054880,183.37117728,146.68,146.67,80.4412902]
[1740761055077,131.87459239,146.68,146.67,80.4412902]
[1740761055475,131.87459239,146.68,146.67,80.2991902]
[1740761055683,131.87459239,146.68,146.67,59.6891902]
[1740761055982,131.87459239,146.68,146.67,39.0791902]
[1740761056185,70.73216157,146.61,146.6,166.28296022]
[1740761056363,79.15216157,146.61,146.6,157.87818039]
[1740761056782,139.03181043,146.61,146.6,157.87818039]
[1740761057092,140.29459239,146.61,146.6,157.87818039]
[1740761057268,154.36586784,146.61,146.6,157.87818039]
[1740761058588,154.36586784,146.61,146.6,157.73608039]
[1740761059590,154.36586784,146.61,146.6,102.78608039]
[1740761059792,154.36586784,146.61,146.6,82.17608039]
[1740761061692,154.36586784,146.61,146.6,82.03398039]
[1740761062103,173.12756844,146.61,146.6,82.03398039]
[1740761062392,173.12756844,146.61,146.53,187.06833025]
[1740761062393,50.0,146.54,146.53,187.06833025]
[1740761062577,236.50494353,146.54,146.53,187.06833025]
[1740761062973,255.15459239,146.54,146.53,166.45833025]
[1740761063302,269.22586784,146.54,146.53,125.23833025]
[1740761063697,269.22586784,146.54,146.53,84.01833025]
[1740761063885,269.22586784,146.54,146.53,63.40833025]
[1740761064395,269.43911019,146.54,146.53,42.65623025]
[1740761064693,269.43911019,146.54,146.53,1.43623025]
[1740761064902,250.64729976,146.54,146.53,1.43623025]
[1740761065478,250.78946133,146.54,146.53,1.43623025]
[1740761065677,250.62729976,146.54,146.53,1.43623025]
[1740761066085,209.39729976,146.54,146.53,1.43623025]
[1740761066480,209.18405741,146.54,146.53,1.29413025]
[1740761067282,190.40197641,146.54,146.46,207.85370028]
[1740761067591,34.60286518,146.5,146.46,242.21018927]
[1740761067783,1.26278196,146.49,146.46,242.21018927]
[1740761067977,8.44,146.48,146.46,242.21018927]
[1740761068173,61.33508153,146.47,146.46,207.85370028]
[1740761068377,8.44,146.47,146.46,207.85370028]
[1740761068975,22.51127545,146.47,146.46,207.85370028]
[1740761069178,41.16092431,146.47,146.46,207.85370028]
[1740761069590,82.53308588,146.47,146.46,207.91670028]
[1740761069999,82.53308588,146.47,146.46,207.77460028]
[1740761070370,63.88343702,146.47,146.46,207.77460028]
[1740761070575,22.65343702,146.47,146.46,207.77460028]
[1740761070776,22.51127545,146.47,146.46,207.77460028]
[1740761071192,14.07127545,146.47,146.46,207.77460028]
[1740761072593,14.21343702,146.47,146.46,207.77460028]
[1740761073111,32.97513762,146.47,146.46,207.77460028]
[1740761073599,92.85478648,146.47,146.46,207.63250028]
[1740761076997,92.85478648,146.47,146.46,207.49040028]
[1740761077881,92.85478648,146.47,146.46,206.99040028]
[1740761078276,172.59201403,146.47,146.46,206.99040028]
[1740761078481,153.94236517,146.47,146.46,206.99040028]
[1740761078889,153.8002036,146.47,146.46,206.99040028]
[1740761079604,153.94236517,146.47,146.46,206.99040028]
[1740761079793,160.6562036,146.47,146.46,206.99040028]
[1740761080606,160.79836517,146.47,146.46,206.99040028]
[1740761080786,169.07836517,146.47,146.46,206.99040028]
[1740761081614,160.79836517,146.47,146.46,206.99040028]
[1740761081917,127.85836517,146.47,146.46,206.99040028]
[1740761082084,127.7162036,146.47,146.46,206.99040028]
[1740761082502,187.73801403,146.47,146.46,206.84830028]
[1740761082691,169.08836517,146.47,146.46,206.84830028]
[1740761083606,284.20836517,146.47,146.46,206.84830028]
[1740761083803,340.49346697,146.47,146.46,206.84830028]
[1740761084317,340.49346697,146.47,146.46,206.70620028]
[1740761086594,393.74598101,146.47,146.46,206.56410028]
[1740761087408,340.49346697,146.47,146.46,206.56410028]
[1740761087802,415.39759046,146.47,146.46,206.56410028]
[1740761088013,374.02542889,146.47,146.46,206.56410028]
[1740761088307,374.06759046,146.47,146.46,206.56410028]
[1740761088487,373.92542889,146.47,146.46,206.56410028]
[1740761089314,373.90542889,146.47,146.46,206.56410028]
[1740761089905,415.27759046,146.47,146.46,206.56410028]
[1740761090109,439.71354256,146.47,146.46,206.56410028]
[1740761090704,480.94354256,146.47,146.46,206.56410028]
[1740761091483,439.57138099,146.47,146.46,206.56410028]
[1740761091687,431.43138099,146.47,146.46,206.56410028]
[1740761092002,439.57138099,146.47,146.46,206.56410028]
[1740761094490,432.85754256,146.47,146.46,206.56410028]
[1740761095106,474.08754256,146.47,146.46,206.56410028]
[1740761095802,508.69040774,146.47,146.46,206.42200028]
[1740761097590,508.69040774,146.47,146.46,206.27990028]
[1740761100324,473.94538099,146.47,146.46,206.27990028]
[1740761100626,473.80538099,146.47,146.46,206.27990028]
[1740761100800,473.94754256,146.47,146.46,206.27990028]
[1740761100995,473.94754256,146.47,146.46,206.13780028]
[1740761101407,473.94754256,146.47,146.46,169.12410028]
[1740761102097,473.80538099,146.47,146.46,169.12410028]
[1740761102297,473.94754256,146.47,146.46,169.12410028]
[1740761102511,473.80538099,146.47,146.46,169.12410028]
[1740761102692,424.57538099,146.47,146.46,169.12410028]
[1740761102894,432.57538099,146.47,146.46,169.12410028]
[1740761104622,424.57538099,146.47,146.46,169.12410028]
[1740761104920,423.21508099,146.47,146.46,169.12410028]
[1740761105101,297.44138099,146.47,146.46,169.12410028]
[1740761105302,297.44138099,146.47,146.46,173.12410028]
[1740761105303,269.42048099,146.47,146.46,173.12410028]
[1740761105601,267.15508099,146.47,146.46,173.12410028]
[1740761106801,267.15508099,146.47,146.46,171.12410028]
[1740761107111,267.15508099,146.47,146.46,169.12410028]
[1740761107819,267.15508099,146.47,146.46,173.12410028]
[1740761108117,267.15508099,146.47,146.46,171.12410028]
[1740761108316,267.15508099,146.47,146.46,173.12410028]
[1740761108498,267.15508099,146.47,146.46,191.77374914]
[1740761108699,260.48848099,146.47,146.46,191.77374914]
[1740761109002,253.82188099,146.47,146.46,191.91591071]
[1740761110214,253.82188099,146.47,146.46,193.91591071]
[1740761110423,253.82188099,146.47,146.46,191.91591071]
[1740761110637,253.82188099,146.47,146.46,191.77374914]
[1740761111007,253.82188099,146.47,146.46,173.12410028]
[1740761111415,253.82188099,146.47,146.46,169.12410028]
[1740761111632,253.82188099,146.47,146.46,171.12410028]
[1740761111806,253.82188099,146.47,146.46,173.12410028]
[1740761112306,253.82188099,146.47,146.46,169.12410028]
[1740761114506,253.82188099,146.47,146.46,173.12410028]
[1740761115230,253.82188099,146.47,146.46,169.12410028]
[1740761115607,253.96404256,146.47,146.46,169.12410028]
[1740761115910,260.17664256,146.47,146.46,169.12410028]
[1740761116513,278.82629142,146.47,146.46,169.12410028]
[1740761116931,278.82629142,146.47,146.46,159.78380028]
[1740761117116,313.4291566,146.47,146.46,159.64170028]
[1740761118240,278.82629142,146.47,146.46,159.64170028]
[1740761119023,268.01664256,146.47,146.46,159.64170028]
[1740761119231,261.66188099,146.47,146.46,159.64170028]
[1740761120129,261.66188099,146.47,146.46,163.64170028]
[1740761120429,261.66188099,146.47,146.46,161.64170028]
[1740761120829,261.66188099,146.47,146.46,163.64170028]
[1740761121124,253.82188099,146.47,146.46,163.64170028]
[1740761121908,253.82188099,146.47,146.46,161.64170028]
[1740761122128,253.82188099,146.47,146.46,163.64170028]
[1740761123117,178.9177575,146.47,146.46,163.64170028]
[1740761124812,178.9177575,146.47,146.46,161.64170028]
[1740761125311,178.9177575,146.47,146.46,159.64170028]
[1740761125632,178.9177575,146.47,146.46,161.64170028]
[1740761126013,178.9177575,146.47,146.46,163.64170028]
[1740761126206,56.9667036,146.47,146.46,163.64170028]
[1740761127318,56.9667036,146.47,146.46,159.64170028]
[1740761127630,56.9667036,146.47,146.46,161.64170028]
[1740761127631,32.86297605,146.47,146.46,161.64170028]
[1740761128134,32.86297605,146.47,146.46,159.64170028]
[1740761128832,32.86297605,146.47,146.46,161.64170028]
[1740761129033,32.86297605,146.47,146.46,163.64170028]
[1740761130640,32.86297605,146.47,146.46,182.29134914]
[1740761131221,32.86297605,146.47,146.46,163.64170028]
[1740761132536,32.86297605,146.47,146.46,182.29134914]
[1740761132841,89.14807785,146.47,146.46,182.29134914]
[1740761133538,89.14807785,146.47,146.46,163.64170028]
[1740761133738,89.14807785,146.47,146.46,159.64170028]
[1740761133931,96.92807785,146.47,146.46,159.64170028]
[1740761134333,249.03239385,146.47,146.46,159.64170028]
[1740761134532,249.17455542,146.47,146.46,159.64170028]
[1740761134925,249.17455542,146.47,146.46,156.87750028]
[1740761134926,309.05420428,146.47,146.46,156.87750028]
[1740761135243,309.05420428,146.47,146.46,154.11330028]
[1740761135946,249.17455542,146.47,146.46,154.11330028]
[1740761136437,267.82420428,146.47,146.46,154.11330028]
[1740761136653,309.05420428,146.47,146.46,154.11330028]
[1740761137924,249.17455542,146.47,146.46,154.11330028]
[1740761138334,267.82420428,146.47,146.46,154.11330028]
[1740761138930,309.05420428,146.47,146.46,135.25170028]
[1740761139442,267.82420428,146.47,146.46,135.25170028]
[1740761139654,241.25239385,146.47,146.46,135.25170028]
[1740761139943,249.01239385,146.47,146.46,135.25170028]
[1740761140442,249.15455542,146.47,146.46,135.25170028]
[1740761140650,309.03420428,146.47,146.46,135.25170028]
[1740761141023,309.03420428,146.47,146.46,132.67390028]
[1740761141341,309.03420428,146.47,146.46,126.00730028]
[1740761141519,309.03420428,146.47,146.46,102.09520028]
[1740761141925,309.03420428,146.47,146.46,95.42860028]
[1740761142653,329.62420428,146.47,146.46,54.43600028]
[1740761142839,34.74502675,146.42,146.41,207.85370028]
[1740761143027,94.62467561,146.42,146.41,207.85370028]
[1740761143950,0.14216157,146.42,146.41,207.85370028]
[1740761144337,41.37216157,146.42,146.41,207.71160028]
[1740761144650,0.14216157,146.42,146.41,207.71160028]
[1740761145033,53.39467561,146.42,146.41,207.71160028]
[1740761147044,53.39467561,146.42,146.41,207.56950028]
[1740761148737,18.79181043,146.42,146.41,207.56950028]
[1740761148935,34.60286518,146.44,146.41,207.56950028]
[1740761149141,7.66,146.43,146.41,207.56950028]
[1740761149549,248.93239385,146.47,146.45,4.0]
[1740761149735,248.93239385,146.47,146.44,2.0]
[1740761149936,248.93239385,146.47,146.43,2.0]
[1740761150145,248.93239385,146.47,146.44,2.0]
[1740761150336,248.93239385,146.47,146.43,2.0]
[1740761150637,32.83297605,146.46,146.45,4.0]
[1740761151248,40.53297605,146.46,146.45,4.0]
[1740761152552,40.53297605,146.46,146.45,2.0]
[1740761152757,40.53297605,146.46,146.44,2.0]
[1740761153254,40.53297605,146.46,146.43,2.0]
[1740761153476,40.53297605,146.46,146.41,207.56950028]
[1740761154045,0.14216157,146.45,146.41,207.63250028]
[1740761154245,0.14216157,146.43,146.41,207.63250028]
[1740761154555,135.1,146.42,146.41,207.63250028]
[1740761154766,135.24216157,146.42,146.41,207.63250028]
[1740761154969,2.14216157,146.42,146.41,207.63250028]
[1740761155143,4.14216157,146.42,146.41,207.63250028]
[1740761155752,22.79181043,146.42,146.41,207.63250028]
[1740761155964,22.79181043,146.42,146.41,207.49040028]
[1740761156273,22.79181043,146.42,146.41,2.49233223]
[1740761157041,38.74502675,146.41,146.4,2.606e-05]
[1740761157256,72.98575948,146.41,146.4,2.606e-05]
[1740761157661,38.74502675,146.41,146.4,2.606e-05]
[1740761158160,0.14216157,146.41,146.4,2.606e-05]
[1740761158359,7.92,146.42,146.4,2.606e-05]
[1740761158658,36.3828943,146.41,146.4,2.606e-05]
[1740761158857,72.98575948,146.41,146.4,2.606e-05]
[1740761159247,0.14216157,146.36,146.3,6.37]
[1740761159446,0.14216157,146.34,146.3,6.37]
[1740761159665,0.14216157,146.34,146.22,36.01659009]
[1740761159964,0.14216157,146.34,146.23,52.73824182]
[1740761160360,7.96,146.35,146.23,52.73824182]
[1740761160753,7.96,146.35,146.23,34.08859296]
[1740761160754,80.7,146.33,146.23,34.08859296]
[1740761160944,195.86,146.33,146.22,34.25378459]
[1740761161146,0.14216157,146.32,146.21,34.73960855]
[1740761161341,80.7,146.31,146.18,2.0]
[1740761161663,80.7,146.31,146.19,3.98]
[1740761161849,80.7,146.31,146.2,18.64964886]
[1740761162045,115.16,146.33,146.23,18.64964886]
[1740761162046,80.7,146.3,146.23,18.64964886]
[1740761162249,88.66,146.29,146.23,18.64964886]
[1740761162453,71.3578,146.28,146.27,2.0]
[1740761162657,7.96,146.32,146.27,9.2093]
[1740761162963,7.96,146.32,146.27,6.5619]
[1740761163169,7.96,146.32,146.22,2.6474]
[1740761164459,2.0,146.25,146.04,41.20647523]
[1740761164772,10.02,146.25,146.12,0.20516157]
[1740761165160,10.02,146.25,146.16,0.14216157]
[1740761165345,8.02,146.25,146.16,0.14216157]
[1740761165549,8.02,146.25,146.15,312.0]
[1740761165550,71.83690595,146.25,146.15,312.0]
[1740761165753,71.83690595,146.25,146.12,0.063]
[1740761165956,71.83690595,146.25,146.12,82.64134342]
[1740761166677,80.7,146.24,146.12,0.063]
[1740761166851,41.27782567,146.21,146.12,219.063]
[1740761167167,34.61122567,146.21,146.14,18.79181043]
[1740761167345,34.61122567,146.21,146.16,18.79181043]
[1740761167546,34.61122567,146.21,146.18,18.79181043]
[1740761167947,0.61122567,146.21,146.2,18.79181043]
[1740761168284,0.61122567,146.21,146.2,100.03041043]
[1740761168496,63.81690595,146.27,146.22,0.38076157]
[1740761168652,63.81690595,146.27,146.26,312.14216157]
[1740761168859,63.81690595,146.27,146.26,238.30104886]
[1740761169064,0.81690595,146.27,146.26,238.30104886]
[1740761169267,0.81690595,146.27,146.26,19.30104886]
[1740761169870,0.81690595,146.27,146.26,331.30104886]
[1740761170067,0.67480595,146.27,146.26,331.30104886]
[1740761170373,0.67480595,146.27,146.26,550.30104886]
[1740761170755,0.67480595,146.27,146.26,550.44321043]
[1740761171167,0.67480595,146.27,146.26,331.44321043]
[1740761172456,0.67480595,146.27,146.26,330.44321043]
[1740761172760,0.67480595,146.27,146.26,0.6514]
[1740761173167,0.67480595,146.27,146.26,0.4109]
[1740761173355,78.0244,146.29,146.22,0.4109]
[1740761173555,80.0244,146.33,146.22,0.4109]
[1740761173768,78.0244,146.32,146.22,0.4109]
[1740761173966,78.0244,146.32,146.23,0.14216157]
[1740761175273,78.0244,146.32,146.22,19.06054886]
[1740761175474,78.0244,146.31,146.23,0.14216157]
[1740761175979,78.0244,146.3,146.23,18.79181043]
[1740761176289,78.0244,146.29,146.23,18.79181043]
[1740761176657,78.0244,146.29,146.22,0.4109]
[1740761176971,78.0244,146.29,146.23,0.14216157]
[1740761177691,78.0244,146.33,146.25,18.79181043]
[1740761177865,78.0244,146.32,146.25,18.79181043]
[1740761178389,0.03,146.34,146.25,20.22689675]
[1740761178880,0.03,146.34,146.25,101.22689675]
[1740761179077,0.03,146.34,146.25,239.22689675]
[1740761179284,0.03,146.34,146.25,237.79181043]
[1740761179579,0.03,146.34,146.32,0.14216157]
[1740761179877,0.03,146.34,146.32,18.79181043]
[1740761180068,0.03,146.34,146.31,18.79181043]
[1740761180278,0.03,146.34,146.31,20.22618973]
[1740761180459,0.03,146.34,146.31,18.79181043]
[1740761181579,0.03,146.34,146.29,0.14216157]
[1740761181780,78.0244,146.33,146.28,0.2405]
[1740761182275,78.0244,146.33,146.29,0.14216157]
[1740761182473,78.0244,146.33,146.27,18.64964886]
[1740761182777,78.0244,146.32,146.26,0.4109]
[1740761182964,78.0244,146.31,146.23,0.2405]
[1740761183166,78.0244,146.3,146.23,0.2405]
[1740761183462,78.0244,146.3,146.23,18.89014886]
[1740761183665,78.0244,146.3,146.24,0.14216157]
[1740761184666,78.0244,146.29,146.22,0.063]
[1740761184860,78.0244,146.28,146.22,0.063]
[1740761185281,78.0244,146.27,146.22,0.063]
[1740761185862,2.0,146.25,146.22,0.063]
[1740761186064,4.0,146.23,146.22,0.063]
[1740761186263,11.86,146.23,146.22,0.063]
[1740761187592,2.0,146.18,146.12,0.063]
[1740761187769,7.84,146.17,146.12,0.063]
[1740761188087,9.84,146.17,146.12,0.063]
[1740761188284,10.5369,146.15,146.12,0.063]
[1740761188587,12.5369,146.15,146.12,0.063]
[1740761188962,8.5369,146.15,146.12,0.063]
[1740761189160,8.0319,146.15,146.12,0.063]
[1740761189584,6.0319,146.15,146.12,0.063]
[1740761189887,10.0319,146.15,146.12,0.063]
[1740761190085,4.0,146.14,146.12,0.063]
[1740761190270,2.0,146.13,146.12,0.063]
[1740761190475,4.0,146.13,146.12,0.063]
[1740761190999,6.0319,146.15,146.12,0.063]
[1740761191289,2.0,146.13,146.12,0.063]
[1740761191467,4.0,146.13,146.12,0.063]
[1740761191669,2.0,146.13,146.12,0.063]
[1740761191885,4.0,146.14,146.12,0.063]
[1740761192093,2.0,146.14,146.12,0.063]
[1740761192675,6.0319,146.15,146.12,0.063]
[1740761192880,7.9,146.14,146.12,0.063]
[1740761193087,20.64964886,146.13,146.12,0.063]
[1740761193288,22.64964886,146.13,146.12,0.063]
[1740761194977,11.9,146.14,146.12,0.063]
[1740761195192,2.0,146.13,146.12,0.063]
[1740761195486,11.9,146.14,146.12,0.063]
[1740761195687,9.9,146.14,146.12,0.063]
[1740761196080,7.9,146.14,146.12,0.063]
[1740761197473,2.0,146.13,146.12,0.063]
[1740761197674,7.9,146.14,146.12,0.063]
[1740761198070,6.0319,146.15,146.12,0.063]
[1740761198269,7.9,146.14,146.12,0.063]
[1740761198472,8.119,146.2,146.05,0.14216157]
[1740761198682,6.119,146.2,146.07,0.14216157]
[1740761198876,14.019,146.2,146.09,0.14216157]
[1740761199500,80.7,146.19,146.09,0.14216157]
[1740761199793,80.7,146.22,146.11,0.14216157]
[1740761199996,80.7,146.21,146.13,18.79181043]
[1740761200197,80.7,146.2,146.15,18.79181043]
[1740761200379,80.7,146.25,146.15,18.79181043]
[1740761200581,80.7,146.24,146.17,18.79181043]
[1740761201100,80.7,146.24,146.17,99.79181043]
[1740761201504,80.7,146.28,146.19,18.79181043]
[1740761201687,80.7,146.27,146.21,18.79181043]
[1740761201998,80.7,146.27,146.2,1.43563646]
[1740761201999,114.74059488,146.27,146.2,18.79181043]
[1740761202195,34.17802481,146.25,146.2,0.14216157]
[1740761202386,80.7,146.24,146.12,0.4739]
[1740761202699,36.17802481,146.25,146.13,0.14216157]
[1740761202700,80.7,146.23,146.13,0.14216157]
[1740761202889,80.7,146.23,146.13,18.79181043]
[1740761203197,80.7,146.23,146.09,81.0]
[1740761203415,9.2708,146.21,146.1,1.43644927]
[1740761203599,2.0,146.19,146.04,1.43637745]
[1740761203900,2.0,146.19,146.12,0.063]
[1740761204083,2.0,146.17,146.12,0.063]
[1740761204283,92.03517165,146.18,146.12,0.063]
[1740761204487,90.03517165,146.18,146.12,0.063]
[1740761204693,80.7,146.17,146.05,18.64964886]
[1740761204888,80.7,146.17,146.08,0.14216157]
[1740761205197,80.7,146.16,146.1,0.14216157]
[1740761205901,9.33517165,146.17,146.12,0.14216157]
[1740761206101,9.33517165,146.17,146.12,312.0]
[1740761206405,80.7,146.16,146.04,88.84]
[1740761206604,122.93699472,146.16,146.05,1.43683367]
[1740761206911,80.7,146.15,146.01,9.27708214]
[1740761207203,80.7,146.15,146.02,18.64964886]
[1740761207609,108.70551495,146.15,146.02,18.64964886]
[1740761207908,108.70551495,146.15,146.04,18.64964886]
[1740761208087,90.03517165,146.14,146.06,18.64964886]
[1740761208424,90.03517165,146.14,146.07,0.14216157]
[1740761209089,9.33517165,146.13,146.07,0.14216157]
[1740761209293,9.33517165,146.13,146.07,312.14216157]
[1740761209496,80.7,146.12,146.07,312.0]
[1740761209697,80.7,146.11,146.03,18.64964886]
[1740761209907,80.7,146.11,146.04,0.14216157]
[1740761210104,80.7,146.11,146.03,18.64964886]
[1740761210316,80.7,146.1,146.0,173.10293421]
[1740761210494,80.7,146.09,146.0,81.063]
[1740761210683,80.7,146.08,146.0,0.063]
[1740761211308,80.7,146.08,146.01,18.64964886]
[1740761211820,80.7,146.08,146.0,0.063]
[1740761212202,9.33517165,146.07,146.01,18.64964886]
[1740761212520,9.33517165,146.07,146.04,0.14216157]
[1740761212924,9.33517165,146.07,146.06,0.14216157]
[1740761213289,88.48,146.13,146.06,0.14216157]
[1740761213526,80.7,146.12,146.06,0.14216157]
[1740761214426,9.3487387,146.12,146.08,0.14216157]
[1740761215626,80.7,146.13,146.06,0.14216157]
[1740761215798,80.7,146.13,146.06,18.79181043]
[1740761216123,80.7,146.13,146.06,330.79181043]
[1740761216512,80.7,146.13,146.08,0.14216157]
[1740761216991,9.3487387,146.12,146.08,0.14216157]
[1740761217198,9.3487387,146.12,146.06,0.14216157]
[1740761217523,80.7,146.13,146.06,0.14216157]
[1740761217816,80.7,146.13,146.06,0.063]
[1740761217991,80.7,146.12,146.06,0.063]
[1740761219625,80.7,146.12,146.07,18.68947785]
[1740761220110,7.74,146.14,146.07,18.68947785]
[1740761220321,80.7,146.15,146.07,0.86089075]
[1740761220693,63.62686193,146.17,146.09,0.14216157]
[1740761220894,80.7,146.16,146.11,0.14216157]
[1740761221095,80.7,146.15,146.06,0.063]
[1740761221296,80.7,146.14,146.06,0.063]
[1740761221495,80.7,146.14,146.07,0.14216157]
[1740761221720,80.7,146.14,146.09,18.79181043]
[1740761221912,80.7,146.16,146.09,18.79181043]
[1740761222300,80.7,146.16,146.09,0.14216157]
[1740761222506,2.0,146.14,146.07,0.02639342]
[1740761222699,6.4054,146.12,146.07,9.342e-05]
[1740761222900,2.0,146.11,146.06,9.342e-05]
[1740761223205,82.7,146.1,146.06,9.342e-05]
[1740761223405,9.6577,146.12,146.06,9.342e-05]
[1740761223406,90.44,146.09,146.06,9.342e-05]
[1740761223604,88.44,146.09,146.06,9.342e-05]
[1740761224225,82.7,146.08,146.06,9.342e-05]
[1740761224403,80.7,146.07,146.06,9.342e-05]
[1740761224710,2.0,146.07,146.06,9.342e-05]
[1740761225111,2.0,146.0,145.97,0.063]
[1740761225310,7.72,146.0,145.97,0.0001]
[1740761225502,9.72,146.0,145.97,0.0001]
[1740761225802,2.0,145.99,145.97,0.0001]
[1740761226011,7.72,146.0,145.97,0.0001]
[1740761227924,6.666,146.05,145.97,0.0001]
[1740761228228,2.0,146.04,145.97,0.0001]
[1740761228397,2.0,146.03,145.97,0.0001]
[1740761228605,2.0,146.02,145.97,0.0001]
[1740761229000,2.0,146.0,145.97,0.0001]
[1740761229310,80.7,146.01,145.9,0.063]
[1740761229511,82.7,146.0,145.91,0.14216157]
[1740761229712,82.7,145.99,145.9,0.063]
[1740761230199,80.7,145.99,145.9,0.063]
[1740761230616,80.7,145.98,145.91,18.79181043]
[1740761230819,80.7,145.97,145.91,330.79181043]
[1740761233723,80.7,145.97,145.91,312.0]
[1740761234121,80.7,145.96,145.92,0.14216157]
[1740761235210,80.7,145.95,145.9,0.063]
[1740761235409,80.7,145.94,145.9,0.063]
[1740761235615,80.7,145.93,145.9,0.063]
[1740761235807,80.7,145.92,145.9,0.063]
[1740761236004,80.7,145.91,145.9,0.063]
[1740761236906,80.7,145.94,145.9,0.063]
[1740761237423,80.7,145.93,145.9,0.063]
[1740761237813,80.7,145.92,145.9,0.063]
[1740761238323,83.711,145.97,145.9,0.063]
[1740761238627,80.7,145.97,145.91,0.14216157]
[1740761238813,82.7,145.96,145.9,0.063]
[1740761239130,80.7,145.95,145.9,0.063]
[1740761239314,80.7,145.94,145.9,0.063]
[1740761239513,80.7,145.93,145.9,0.063]
[1740761240229,80.7,145.96,145.9,0.063]
[1740761240431,80.7,145.95,145.9,0.063]
[1740761240926,80.7,145.97,145.9,0.20516157]
[1740761241132,80.7,145.96,145.89,7.7]
[1740761241329,82.7,145.96,145.89,7.7]
[1740761241514,2.0,145.94,145.88,0.063]
[1740761241724,80.7,145.93,145.88,0.063]
[1740761241924,82.7,145.92,145.88,0.063]
[1740761242128,80.7,145.91,145.88,0.063]
[1740761242325,80.7,145.9,145.88,0.063]
[1740761242529,80.7,145.89,145.88,0.063]
[1740761242830,2.0,145.91,145.88,0.0001]
[1740761243031,9.3268,145.92,145.88,0.0001]
[1740761243218,11.3268,145.92,145.88,0.0001]
[1740761243738,2.0,145.91,145.88,0.0001]
[1740761244039,11.3268,145.92,145.88,0.0001]
[1740761244528,9.3268,145.92,145.88,0.0001]
[1740761244715,2.0,145.91,145.88,0.0001]
[1740761244911,11.3268,145.92,145.86,0.063]
[1740761244912,2.0,145.88,145.86,0.0001]
[1740761245108,7.7,145.9,145.86,0.0001]
[1740761245713,11.3268,145.92,145.86,0.0001]
[1740761245714,9.3268,145.92,145.86,0.0001]
[1740761246236,0.063,145.93,145.86,0.14226157]
[1740761246435,2.0,145.91,145.86,0.0001]
[1740761246733,2.0,145.88,145.85,0.0001]
[1740761246922,2.0,145.86,145.85,0.0001]
[1740761248334,20.64964886,145.86,145.77,0.063]
[1740761248540,2.0,145.85,145.77,0.063]
[1740761248725,11.3034,145.87,145.77,0.063]
[1740761248726,2.0,145.83,145.77,0.063]
[1740761248929,2.0,145.82,145.77,0.063]
[1740761249441,2.0,145.83,145.77,0.063]
[1740761249615,2.0,145.84,145.77,0.063]
[1740761249816,2.0,145.83,145.77,0.063]
[1740761250016,2.0,145.84,145.77,0.063]
[1740761250218,2.0,145.82,145.77,0.063]
[1740761250930,2.0,145.82,145.75,0.20516157]
[1740761251332,80.7,145.81,145.75,0.20516157]
[1740761251537,80.7,145.8,145.75,0.063]
[1740761251836,82.7,145.79,145.75,0.063]
[1740761252137,2.0,145.83,145.75,0.063]
[1740761252138,80.7,145.78,145.75,0.063]
[1740761252332,80.7,145.81,145.75,0.063]
[1740761252937,80.7,145.81,145.76,18.29181043]
[1740761253139,80.7,145.84,145.76,18.29181043]
[1740761253437,2.0,145.82,145.75,0.063]
[1740761253635,80.7,145.81,145.75,0.063]
[1740761253825,2.0,145.83,145.75,0.063]
[1740761253826,80.7,145.8,145.75,0.063]
[1740761254935,80.7,145.8,145.75,312.063]